Cogmind - Beta 13 @@@ ROGUE MODE // 2024.05.25 @ 11:53:45 Player: Occam Result: Destroyed by Enhanced Grunt with Neutron Cannon Performance ------------- Evolutions (3) 1500 Regions Visited (11) 2200 Robots Destroyed (256) 1280 Value Destroyed (7001) 7001 Prototype IDs (221) 4420 Alien Tech Used (0) 0 Bonus (3774) 3774 TOTAL SCORE: 20175 Bonus ------- High Alert Combat Kills 348 Follower Combat Kills 143 Met Data Miner 300 Used Data Conduit 3000 Friendly Fire -17 Cogmind --------- Core Integrity 0/700 Matter 104/300 Energy 98/100 System Corruption 7% Temperature Cool (0) Movement Rolling (155) Ox5 Location -7/Data Miner Parts ------- > --- POWER (1) -------- (None) > --- PROPULSION (2) --- Wheel Wheel > --- UTILITY (7) ------ Huge Storage Unit Improved Sensor Array Improved Melee Analysis Suite Layered Medium Armor Plating > --- WEAPON (3) ------- Tearclaws Spear > --- INVENTORY (25) --- Light Angular Momentum Engine Medium Treads Improved Cooling System High-capacity Matter Pod (200) Improved Signal Interpreter Seismic Detector Improved Power Shielding Improved Powered Armor Improved Force Field Authchip [R/NC] Authchip [Device] Authchip [Device] Authchip [Armor] Trap Extractor (2/4 Shock) Improved EM Shotgun Improved EM Shotgun Heavy Missile Launcher Heavy Missile Launcher Improved Datajack Enhanced Flamer Power Maul Greatsword Peak State ------------ > --- POWER ------------ Neutrino Core > --- PROPULSION ------- Medium Treads Wheel > --- UTILITY ---------- Improved Cooling System Huge Storage Unit Improved Sensor Array Improved Medium Armor Plating Improved Medium Armor Plating Layered Medium Armor Plating Hacking Suite > --- WEAPON ----------- Tearclaws Spear > --- INVENTORY -------- Light Angular Momentum Engine Wheel High-capacity Matter Pod Improved Signal Interpreter Seismic Detector Improved Melee Analysis Suite Improved Power Shielding Improved Powered Armor Improved Force Field Authchip [R/NC] Authchip [Device] Authchip [Device] Authchip [Armor] Trap Extractor Improved EM Shotgun Improved EM Shotgun High-powered Shotgun Improved Grenade Launcher Heavy Missile Launcher Heavy Missile Launcher Improved Datajack Enhanced Flamer Power Maul Greatsword [Rating: 57] Favorites ----------- Power Heavy Ion Engine Engine Heavy Ion Engine Power Core Neutrino Core Propulsion Light Treads Treads Light Treads Leg Aluminum Leg Wheel Compact Wheel Utility Huge Storage Unit Device Seismic Detector Storage Huge Storage Unit Processor Machine Analyzer Hackware Hacking Suite Protection Improved Medium Armor Plating Weapon Improved Assault Rifle Energy Gun Medium Laser Energy Cannon Advanced Beam Cannon Ballistic Gun Improved Assault Rifle Ballistic Cannon Advanced Assault Cannon Launcher Improved Grenade Launcher Impact Weapon Maul Slashing Weapon Tearclaws Piercing Weapon Spear Special Melee Weapon Datajack Build | -11 -10 -10 -9 -9 -9 -8 -8 -7 -7 -7 -7 ------- Run | Yrd Mat Min Mat Min Exi Min Mat Fac Low Low Dat Slots Evolved 6 | . . . 2 . . . 2 2 . . . Power . | . . . . . . . . . . . . Propulsion . | . . . . . . . . . . . . Utility 5 | . . . 1 . . . 2 2 . . . Weapon 1 | . . . 1 . . . . . . . . Parts Attached 222 | 1 16 9 46 5 1 1 44 68 21 7 3 Power 15 | . 2 1 6 . . . 1 3 2 . . Engine 14 | . 2 1 6 . . . 1 3 1 . . Core 1 | . . . . . . . . . 1 . . Reactor . | . . . . . . . . . . . . Propulsion 65 | . 4 6 13 1 . . 15 21 3 1 1 Treads 33 | . 3 4 5 1 . . 10 9 . 1 . Leg 2 | . . . . . . . . 2 . . . Wheel 30 | . 1 2 8 . . . 5 10 3 . 1 Hover . | . . . . . . . . . . . . Flight . | . . . . . . . . . . . . Utility 56 | 1 5 1 9 3 . . 13 15 8 . 1 Device 30 | 1 1 1 8 2 . . 9 2 6 . . Storage 4 | . 2 . 1 1 . . . . . . . Processor 2 | . . . . . . . . 1 . . 1 Hackware 4 | . . . . . . . 1 3 . . . Protection 16 | . 2 . . . . . 3 9 2 . . Artifact . | . . . . . . . . . . . . Weapon 86 | . 5 1 18 1 1 1 15 29 8 6 1 Energy Gun 15 | . 3 . 3 . . . 3 3 3 . . Energy Cannon 8 | . . . 8 . . . . . . . . Ballistic Gun 36 | . 1 1 4 1 . 1 11 15 . 2 . Ballistic Cannon 3 | . . . 2 . . . . 1 . . . Launcher 3 | . . . . . . . . 1 1 1 . Special Weapon . | . . . . . . . . . . . . Impact Weapon 10 | . . . . . . . . 8 2 . . Slashing Weapon 2 | . . . . . . . . . . 1 1 Piercing Weapon 4 | . . . . . . . . . 2 2 . Special Melee Weapon 5 | . 1 . 1 . 1 . 1 1 . . . Unidentified Prototypes 8 | . . . 5 . . . 2 . 1 . . Parts Lost 39 | . 1 3 3 . . . 6 19 3 . 4 Power 5 | . . 1 . . . . 1 1 1 . 1 Propulsion 9 | . . 1 1 . . . . 5 2 . . Utility 12 | . 1 . . . . . 2 6 . . 3 Weapon 13 | . . 1 2 . . . 3 7 . . . Highest Loss Streak 10 | . 1 2 2 . . . 3 10 2 . 4 To Critical Strikes . | . . . . . . . . . . . . Average Slot Usage (%) 97 | . 99 99 99 99 100 100 97 95 93 95 88 Engine 9 | . 14 13 11 11 11 11 8 6 4 . . Treads 10 | . 23 14 11 11 11 11 9 5 . 4 6 Wheel 9 | . 2 13 10 11 11 11 8 6 10 10 7 Device 15 | . 8 14 21 21 22 22 16 7 12 15 11 Storage 9 | . 14 14 11 11 11 11 9 7 7 7 7 Hackware 5 | . . . . . . . 8 19 11 7 7 Protection 6 | . 5 . . . . . 8 10 20 23 23 Energy Gun 4 | . 13 14 2 . . . 3 2 12 . . Energy Cannon 3 | . . . 19 . . . . . . . . Ballistic Gun 17 | . 13 13 9 33 22 32 22 15 . 3 . Naked Turns . | . . . . . . . . . . . . Heaviest Build 131 | 13 52 50 102 100 100 100 118 124 131 131 130 Greatest Support 40 | 20 40 40 20 12 12 12 16 20 20 20 20 Greatest Overweight (x) 13 | . 3 3 8 8 8 8 8 12 13 13 12 Average Overweight (x) 6 | . . 2 6 8 8 8 6 7 8 9 11 Largest Inventory Capacity 25 | 8 20 20 25 25 25 25 25 25 25 25 25 Average Capacity 23 | 8 13 20 24 25 25 25 25 25 25 25 25 Most Carried 25 | 6 19 20 25 25 25 25 25 25 25 25 25 Average Carried 22 | 6 11 19 23 24 25 25 24 23 24 24 24 Final Capacity 25 | 8 20 20 25 25 25 25 25 25 25 25 25 Final Carried 25 | 6 19 18 25 25 25 25 25 24 25 25 23 Class Distribution -------------------- 22% | Mutant 19% | Tank 16% | Scavenger-Tank 15% | Skirmisher 6% | Scavenger-Mutant 5% | Hacker-Mutant 5% | Scavenger-Skirmisher 4% | Hacker-Tank Dominant Class ---------------- Mutant | -10/Materials Mutant | -10/Mines Skirmisher | -9/Materials Skirmisher | -9/Mines Mutant | -9/Exiles Tank | -8/Mines Scavenger-Tank | -8/Materials Scavenger-Tank | -7/Factory Scavenger-Tank | -7/Lower Caves Scavenger-Mutant | -7/Lower Caves Mutant | -7/Data Miner Resources | -11 -10 -10 -9 -9 -9 -8 -8 -7 -7 -7 -7 ----------- Run | Yrd Mat Min Mat Min Exi Min Mat Fac Low Low Dat Matter Collected 6139 | 209 772 169 701 319 . 353 1241 1787 497 91 . Remotely . | . . . . . . . . . . . . Salvage Created 9565 | 14 959 303 2071 542 . 710 2104 2210 447 205 . Parts 525 | 4 53 19 110 32 . 36 139 107 11 14 . Haulers Intercepted 13 | . 1 . 5 . . . 6 . 1 . . Recyclers Shooed 18 | 1 6 . 3 1 . 1 3 3 . . . Parts Field Recycled . | . . . . . . . . . . . . Retrieved Matter . | . . . . . . . . . . . . Parts Self-Destructed 21 | . . . . . . . . . 13 8 . Prevented . | . . . . . . . . . . . . Kills | -11 -10 -10 -9 -9 -9 -8 -8 -7 -7 -7 -7 ------- Run | Yrd Mat Min Mat Min Exi Min Mat Fac Low Low Dat Combat Hostiles Destroyed 162 | . 13 6 29 16 . 14 28 36 8 12 . Melee 3 | . . . . . . . . 2 . 1 . Guns 108 | . 13 6 6 16 . 14 28 22 3 . . Cannons 29 | . . . 23 . . . . 4 2 . . AOE 20 | . . . . . . . . 6 3 11 . Classes Destroyed 18 | 1 8 . 3 1 . 1 1 1 1 1 . Worker 15 | . 1 5 . . . 2 2 5 . . . Builder 19 | . 2 . 4 . . 1 6 6 . . . Tunneler 5 | 1 1 . 1 2 . . . . . . . Hauler 13 | . 1 . 5 . . . 6 . 1 . . Recycler 20 | . 4 . 6 . . 3 3 4 . . . Mechanic 2 | . . . 1 . . . . 1 . . . Operator 8 | . 2 . 2 . . . 3 1 . . . Watcher 15 | . 3 . 5 . . . 5 2 . . . Swarmer 44 | . 6 3 6 6 . 7 3 6 . 7 . Grunt 72 | . 7 3 13 5 . 6 14 13 7 4 . Brawler 1 | . . . 1 . . . . . . . . Duelist 2 | . . . . . . . 2 . . . . Sentry 28 | . . . 9 2 . . 8 9 . . . Hunter 5 | . . . . . . 1 1 3 . . . Programmer 6 | . . . . . . . . 5 1 . . Decomposer 1 | . . . . . . . . . 1 . . Samaritan 2 | . . . . . . . . . 2 . . Thief 1 | . . . . . . . . . . 1 . Assembled 3 | . . . . 3 . . . . . . . Best Kill Streak 14 | 1 4 3 12 4 . 14 5 8 4 7 . Combat Bots Only 8 | . 4 3 7 3 . 8 3 5 4 7 . Max Kills in Single Turn 7 | 1 2 1 1 2 . 2 2 7 1 3 . Gunslinging 1 | . . . . 1 . 1 1 . . . . Exploded 3 | . . . . . . . . 3 1 3 . Melee 1 | . . . . . . . . 1 . 1 . Uniques/NPCs Destroyed . | . . . . . . . . . . . . Combat | -11 -10 -10 -9 -9 -9 -8 -8 -7 -7 -7 -7 -------- Run | Yrd Mat Min Mat Min Exi Min Mat Fac Low Low Dat Hostile Shots Fired 1093 | . 69 46 106 39 . 54 110 598 35 25 11 Missed 305 | . 14 8 25 16 . 13 30 178 10 7 4 Damage Taken 9179 | . 558 381 944 279 . 391 1147 4417 452 293 317 Core 1216 | . 54 39 186 35 . 18 145 518 65 70 86 Absorbed by Shields 234 | . . . . . . 152 82 . . . . Ignored by Resistances 88 | . . . . . . . . 88 . . . Regen/Repaired (Parts) 389 | . 119 . 13 . . . 128 129 . . . Core Remaining (%) 68 | 100 . 62 . . . 40 73 . . . . Volleys Fired 551 | 3 88 26 105 31 . 37 111 119 20 11 . Largest 3 | 2 2 2 3 3 . 3 3 3 3 1 . Hottest 204 | 70 70 70 204 69 . 69 111 178 178 36 . Shots Fired 1437 | 6 173 51 304 93 . 111 330 309 49 11 . Gun 1192 | 6 173 51 107 93 . 111 330 292 29 . . Cannon 225 | . . . 197 . . . . 12 16 . . Launcher 20 | . . . . . . . . 5 4 11 . Special . | . . . . . . . . . . . . Kinetic 967 | 3 86 26 76 93 . 111 276 280 16 . . Thermal 448 | 3 87 25 226 . . . 54 24 29 . . Explosive 15 | . . . . . . . . . 4 11 . Electromagnetic 7 | . . . 2 . . . . 5 . . . Robot Hit Streak 25 | 3 15 15 21 17 . 15 25 20 12 7 . Robot Miss Streak 8 | 2 5 2 6 4 . 3 8 7 3 . . Penetration Max . | . . . . . . . . . . . . Secondary Targets 15 | . 1 2 . 5 . 1 5 1 . . . Max Gunslinging Chain 1 | . 1 1 . 1 . 1 1 1 . . . Shots Hit Robots 996 | 4 98 37 189 64 4 72 231 248 40 8 1 Core Hits 442 | 1 40 16 71 24 . 35 97 112 22 24 . Critical Kills 7 | . 2 1 . 1 . . 3 . . . . Critical Parts Destroyed 8 | . . . . . . 1 1 6 . . . Critical Strikes 32 | . 7 1 5 1 . 1 6 8 2 1 . Burn 13 | . 5 . 5 . . . 2 1 . . . Destroy 13 | . 2 1 . 1 . 1 4 4 . . . Blast 1 | . . . . . . . . 1 . . . Smash 2 | . . . . . . . . 2 . . . Impale 3 | . . . . . . . . . 2 1 . Melee Attacks 71 | . . . . . 4 2 3 25 7 4 26 Impact 24 | . . . . . . . . 24 . . . Slashing 4 | . . . . . . . . . . . 4 Piercing 32 | . . . . . . . . . 6 4 22 Sneak Attacks 25 | . . . . . 4 2 3 8 7 . 1 Combat Hostiles 1 | . . . . . . . . 1 . . . Follow-up Attacks . | . . . . . . . . . . . . Damage Inflicted 20248 | 54 1255 484 3547 1064 . 1136 3636 6383 1313 1318 58 Guns 12982 | 54 1255 484 1124 1064 . 1136 3636 3929 300 . . Cannons 2964 | . . . 2423 . . . . 198 343 . . Explosions 2988 | . . . . . . . . 1466 335 1187 . Melee 1314 | . . . . . . . . 790 335 131 58 Ramming . | . . . . . . . . . . . . Kinetic 10728 | 28 648 275 841 1064 . 1136 2841 3552 343 . . Thermal 6333 | 26 607 209 2665 . . . 795 1731 300 . . Explosive 1522 | . . . . . . . . . 335 1187 . Electromagnetic 351 | . . . 41 . . . . 310 . . . Impact 790 | . . . . . . . . 790 . . . Slashing . | . . . . . . . . . . . . Piercing 524 | . . . . . . . . . 335 131 58 Highest Corruption 7 | . 4 4 . . . . . 7 7 7 7 Average Corruption 4 | . 3 4 . . . . . 3 7 7 7 Corruption Purged . | . . . . . . . . . . . . Corruption Blocked . | . . . . . . . . . . . . Effects 154 | . 35 20 . . . . . 43 34 14 8 Message Errors 29 | . 6 1 . . . . . 8 11 3 . Matter Fused 38 | . 11 2 . . . . . 13 6 4 2 Heat Flow Errors 16 | . 5 5 . . . . . 5 1 . . Energy Discharges 24 | . 4 7 . . . . . 3 4 5 1 Parts Fused 2 | . . . . . . . . 1 1 . . Data Loss (minor) 26 | . 5 3 . . . . . 8 6 1 3 Data Loss (major) 5 | . . . . . . . . 1 2 1 1 Misfires 2 | . 1 . . . . . . . 1 . . Alerts 4 | . . 1 . . . . . 1 1 . 1 Weapon Failures 8 | . 3 1 . . . . . 3 1 . . Overload Shots . | . . . . . . . . . . . . Overflow Damage 888 | . . . 67 . . . . 715 54 52 . Projectiles 75 | . . . 67 . . . . . 8 . . Explosions 410 | . . . . . . . . 358 . 52 . Melee 403 | . . . . . . . . 357 46 . . Knockbacks 9 | . . . 3 . . . . 3 3 . . Impact 2 | . . . . . . . . 2 . . . Kinetic 7 | . . . 3 . . . . 1 3 . . Secondary . | . . . . . . . . . . . . Self-Inflicted Damage 290 | . . . . . . . . 250 29 11 . Shots 5 | . . . . . . . . 3 1 1 . Rammed . | . . . . . . . . . . . . Targets Rammed . | . . . . . . . . . . . . Kicked . | . . . . . . . . . . . . Crushed . | . . . . . . . . . . . . Highest Temperature 538 | 38 264 216 410 36 . 70 431 538 427 1 . Average Temperature 82 | 16 50 55 95 7 . 20 78 117 143 1 . Received Heat Transfer 2678 | . 216 108 417 66 . 140 474 942 216 99 . Effects 32 | . 3 . 4 . . . 1 22 2 . . Shutdowns 4 | . . . . . . . . 4 . . . Energy Bleed 6 | . . . 1 . . . . 5 . . . Interference 12 | . 3 . 3 . . . . 5 1 . . Short Circuit 3 | . . . . . . . 1 1 1 . . Damage (minor) 2 | . . . . . . . . 2 . . . Damage (major) 4 | . . . . . . . . 4 . . . Damage (core) 1 | . . . . . . . . 1 . . . Siege Activations . | . . . . . . . . . . . . Robots Corrupted 1 | . . . . . . . . 1 . . . Combat Hostiles 1 | . . . . . . . . 1 . . . Parts Fried 4 | . . . . . . . . 4 . . . Impact Corruptions 13 | . . . . . . . . 13 . . . Robots Melted . | . . . . . . . . . . . . Combat Hostiles . | . . . . . . . . . . . . Parts Melted 20 | . 5 1 8 1 . . 2 3 . . . Heat Transferred 12875 | 74 2183 592 5587 . . . 1600 2173 666 . . Parts Sabotaged . | . . . . . . . . . . . . Parts Stolen . | . . . . . . . . . . . . Parts Stripped . | . . . . . . . . . . . . Power Chain Reactions 1 | . . . . . . . . 1 . . . Alert | -11 -10 -10 -9 -9 -9 -8 -8 -7 -7 -7 -7 ------- Run | Yrd Mat Min Mat Min Exi Min Mat Fac Low Low Dat Peak Influence 732 | 5 188 128 463 279 . 250 401 732 . . . Initial 120 | . 3 73 . 120 . . . 101 . . . Average 203 | 5 92 77 274 100 . 75 161 406 . . . Maximum Alert Level 3 | . . . 2 1 . 1 2 3 . . . Low Security (%) 60 | 100 100 100 13 87 . 86 64 38 . . . Level 1 26 | . . . 82 12 . 13 32 3 . . . Level 2 11 | . . . 4 . . . 2 48 . . . Level 3 1 | . . . . . . . . 9 . . . Level 4 . | . . . . . . . . . . . . Level 5 . | . . . . . . . . . . . . High Security . | . . . . . . . . . . . . Max Security . | . . . . . . . . . . . . Squads Dispatched 28 | . 4 . 2 1 . . 4 17 . . . Investigation 8 | . 2 . . 1 . . 1 4 . . . Extermination 4 | . . . . . . . . 4 . . . Reinforcement 9 | . 2 . 2 . . . 3 2 . . . Assault . | . . . . . . . . . . . . Garrison 7 | . . . . . . . . 7 . . . Intercept . | . . . . . . . . . . . . Searches Triggered . | . . . . . . . . . . . . Construction Impeded 3 | . . . 1 . . . 1 1 . . . Haulers Reinforced . | . . . . . . . . . . . . Active Scanning Responses . | . . . . . . . . . . . . Cargo Convoy Interrupts . | . . . . . . . . . . . . Stealth | -11 -10 -10 -9 -9 -9 -8 -8 -7 -7 -7 -7 --------- Run | Yrd Mat Min Mat Min Exi Min Mat Fac Low Low Dat Distress Signals 10 | . . . 4 . . . 5 1 . . . Communications Jammed . | . . . . . . . . . . . . Distress Signals . | . . . . . . . . . . . . Times Spotted 217 | . 24 7 47 16 . 14 39 44 10 12 4 Peak Tracking Total 7 | . 4 3 5 3 . 7 4 5 5 4 4 Tactical Retreats 5 | . . . 2 . . . 1 2 . . . Traps | -11 -10 -10 -9 -9 -9 -8 -8 -7 -7 -7 -7 ------- Run | Yrd Mat Min Mat Min Exi Min Mat Fac Low Low Dat Traps Triggered 7 | . 4 . . . . . 1 2 . . . Indirectly . | . . . . . . . . . . . . Trap Hack Attempts 38 | . 25 . 7 . . . 2 4 . . . Triggered . | . . . . . . . . . . . . Disarmed . | . . . . . . . . . . . . Reprogrammed 5 | . 1 . 1 . . . 1 2 . . . Reused . | . . . . . . . . . . . . Traps Extracted 2 | . . . . . . . . 2 . . . Installed . | . . . . . . . . . . . . Triggered . | . . . . . . . . . . . . Most Traps Carried 2 | . . . . . . . . 2 2 2 2 Machines | -11 -10 -10 -9 -9 -9 -8 -8 -7 -7 -7 -7 ---------- Run | Yrd Mat Min Mat Min Exi Min Mat Fac Low Low Dat Machines Disabled 35 | . 1 . 6 . . . 1 27 . . . Max in Single Turn 24 | . 1 . 1 . . . 1 24 . . . Garrison Access 1 | . . . . . . . . 1 . . . Machines Repaired . | . . . . . . . . . . . . Machines Dismantled . | . . . . . . . . . . . . Machines Sabotaged . | . . . . . . . . . . . . Overloaded Fab Kills . | . . . . . . . . . . . . Hacking | -11 -10 -10 -9 -9 -9 -8 -8 -7 -7 -7 -7 --------- Run | Yrd Mat Min Mat Min Exi Min Mat Fac Low Low Dat Machines Accessed 54 | . 9 1 13 1 1 1 11 14 . . 3 Terminals 37 | . 6 1 11 . . 1 7 11 . . . Fabricators 1 | . . . . . . . . 1 . . . Repair Stations 4 | . 1 . 1 . . . 1 1 . . . Recycling Units 3 | . 2 . . . . . 1 . . . . Scanalyzers 3 | . . . 1 . . . 2 . . . . Garrison Access 1 | . . . . . . . . 1 . . . Total Hacks 186 | . 32 3 47 1 1 4 29 44 . . 25 Successful 107 | . 18 1 21 1 1 1 17 22 . . 25 Failed 78 | . 13 2 26 . . 3 12 22 . . . Catastrophic 9 | . 1 . 3 . . 1 1 3 . . . Database Lockouts 1 | . 1 . . . . . . . . . . Manual 96 | . 16 3 33 . . 4 11 29 . . . Terminals 131 | . 25 3 43 . . 4 19 37 . . . Fabricators 2 | . . . . . . . . 2 . . . Repair Stations 13 | . 4 . 2 . . . 3 4 . . . Recycling Units 4 | . 3 . . . . . 1 . . . . Scanalyzers 8 | . . . 2 . . . 6 . . . . Garrison Access 1 | . . . . . . . . 1 . . . Terminal Hacks 72 | . 9 1 13 1 1 1 8 13 . . 25 Record 7 | . . . . . 1 . . . . . 6 Part Schematic 13 | . 1 . 2 . . . . 1 . . 9 Robot Schematic 8 | . 1 . . . . . . . . . 7 Robot Analysis 9 | . 2 1 3 . . 1 1 1 . . . Prototype ID Bank 4 | . . . 1 . . . . . . . 3 Open Door 1 | . . . . 1 . . . . . . . Branch Access Points 1 | . . . . . . . . 1 . . . Terminal Index 3 | . 1 . . . . . 1 1 . . . Fabricator Index 1 | . . . . . . . . 1 . . . Repair Station Index 1 | . . . . . . . . 1 . . . Alert Level 7 | . . . 3 . . . 2 2 . . . Unreport Threat 6 | . . . 2 . . . 2 2 . . . Locate Traps 6 | . 3 . 1 . . . 1 1 . . . Recall Extermination 1 | . . . . . . . . 1 . . . Recall Reinforcements 1 | . . . . . . . 1 . . . . Hauler Manifests 3 | . 1 . 1 . . . . 1 . . . Fabricator Hacks 1 | . . . . . . . . 1 . . . Load Schematic 1 | . . . . . . . . 1 . . . Repair Station Hacks 12 | . 4 . 2 . . . 2 4 . . . Scan Component 6 | . 2 . 1 . . . 1 2 . . . Repair 6 | . 2 . 1 . . . 1 2 . . . Recycling Unit Hacks 3 | . 2 . . . . . 1 . . . . Report Inventory 3 | . 2 . . . . . 1 . . . . Scanalyzer 5 | . . . 2 . . . 3 . . . . Insert Component 3 | . . . 1 . . . 2 . . . . Analyze 2 | . . . 1 . . . 1 . . . . Garrison Access Hacks 1 | . . . . . . . . 1 . . . Seal Access 1 | . . . . . . . . 1 . . . Unauthorized Hacks 13 | . 3 . 4 . . . 3 3 . . . Terminals 12 | . 3 . 4 . . . 3 2 . . . Botnet 10 | . 2 . 3 . . . 3 2 . . . Operators 2 | . 1 . 1 . . . . . . . . Fabricators 1 | . . . . . . . . 1 . . . Recompile 1 | . . . . . . . . 1 . . . Repair Stations . | . . . . . . . . . . . . Recycling Units . | . . . . . . . . . . . . Scanalyzers . | . . . . . . . . . . . . Garrison Access . | . . . . . . . . . . . . Data Cores Recovered 1 | . . . 1 . . . . . . . . Used 1 | . . . 1 . . . . . . . . Hacking Detections 40 | . 5 1 11 . . 1 11 11 . . . Full Trace Events 8 | . 2 . 1 . . . 2 3 . . . Feedback Events 1 | . . . . . . . . 1 . . . Corruption 1 | . . . . . . . . 1 . . . Feedback Blocked . | . . . . . . . . . . . . Robot Schematics Acquired 8 | . 1 . . . . . . . . . 7 Robots Built . | . . . . . . . . . . . . Authchips . | . . . . . . . . . . . . Time . | . . . . . . . . . . . . Total Robot Build Rating . | . . . . . . . . . . . . Part Schematics Acquired 15 | . 1 . 3 . . . 1 1 . . 9 Parts Built . | . . . . . . . . . . . . Authchips . | . . . . . . . . . . . . Time . | . . . . . . . . . . . . Total Part Build Rating . | . . . . . . . . . . . . Parts Repaired 6 | . 2 . 1 . . . 1 2 . . . Time 218 | . 52 . 38 . . . 51 77 . . . Parts Recycled . | . . . . . . . . . . . . Recycled Matter . | . . . . . . . . . . . . Retrieved Matter . | . . . . . . . . . . . . Retrieved Components . | . . . . . . . . . . . . Parts Scanalyzed 2 | . . . 1 . . . 1 . . . . Part Schematics Acquired 2 | . . . 1 . . . 1 . . . . Parts Damaged . | . . . . . . . . . . . . Bothacking | -11 -10 -10 -9 -9 -9 -8 -8 -7 -7 -7 -7 ------------ Run | Yrd Mat Min Mat Min Exi Min Mat Fac Low Low Dat Used RIF Installer . | . . . . . . . . . . . . Robots Hacked 9 | . . . . . 4 1 2 1 1 . . Non-combat 8 | . . . . . 3 1 2 1 1 . . Combat 1 | . . . . . 1 . . . . . . Robot Hacks Applied 11 | . . . . . 4 2 3 1 1 . . parse_system 8 | . . . . . 4 1 1 1 1 . . no_distress 2 | . . . . . . 1 1 . . . . find_recycling 1 | . . . . . . . 1 . . . . Relay Couplers Released . | . . . . . . . . . . . . Fabnet Peak Effective % . | . . . . . . . . . . . . Robots Rewired . | . . . . . . . . . . . . Allies Hacked . | . . . . . . . . . . . . Hacks Repelled . | . . . . . . . . . . . . Allies | -11 -10 -10 -9 -9 -9 -8 -8 -7 -7 -7 -7 -------- Run | Yrd Mat Min Mat Min Exi Min Mat Fac Low Low Dat Total Allies 4 | . . 3 . 1 . . . . . . . Largest Group 3 | . . 3 3 1 . . . . . . . Highest-Rated Group 40 | . . 40 40 31 . . . . . . . Highest-Rated Ally 31 | . . 16 16 31 . . . . . . . Total Orders . | . . . . . . . . . . . . Ally Attacks 48 | . . . 40 8 . . . . . . . Total Damage 552 | . . . 445 107 . . . . . . . Kills 5 | . . . 5 . . . . . . . . Allies Corrupted . | . . . . . . . . . . . . Allies Melted . | . . . . . . . . . . . . Intel | -11 -10 -10 -9 -9 -9 -8 -8 -7 -7 -7 -7 ------- Run | Yrd Mat Min Mat Min Exi Min Mat Fac Low Low Dat Robot Analysis Total 143 | . 2 1 3 . . 1 1 1 . . 134 Derelict Logs Recovered 5 | . . 2 . 2 . . . . 1 . . Drone Launches . | . . . . . . . . . . . . Drone Recoveries . | . . . . . . . . . . . . Exploration | -11 -10 -10 -9 -9 -9 -8 -8 -7 -7 -7 -7 ------------- Run | Yrd Mat Min Mat Min Exi Min Mat Fac Low Low Dat Turns Passed 16327 | 31 1597 814 2866 1742 541 1536 2525 2814 1024 532 305 Spaces Moved 6787 | 18 784 488 1204 647 255 669 996 974 432 224 96 Core . | . . . . . . . . . . . . Treads 562 | . 553 2 4 . . . . 3 . . . Legs 82 | 18 52 . . . . . . 12 . . . Wheels 6143 | . 179 486 1200 647 255 669 996 959 432 224 96 Hover . | . . . . . . . . . . . . Flight . | . . . . . . . . . . . . Fastest Speed 120 | 120 120 145 145 210 210 210 175 155 155 170 155 Average Speed 195 | 120 153 145 192 210 210 210 195 218 206 216 253 Slowest Speed 570 | 120 160 240 560 210 210 210 210 570 275 275 260 Overloaded Moves . | . . . . . . . . . . . . Propulsion Burnouts . | . . . . . . . . . . . . Robots Hopped . | . . . . . . . . . . . . Cave-ins Triggered . | . . . . . . . . . . . . Exploration Rate (%) 67 | 2 98 89 98 98 64 99 68 30 57 33 78 Regions Visited 11 Branch Regions 7 Pre-discovered Areas 26 | . . . . 1 1 . . . . . 24 Known Exits Taken 2 | . . . 1 . . . . 1 . . . Unknown Exits Taken 9 | 1 1 1 . 1 1 1 1 . 1 1 . Scrap Searched 13 | . . 3 . 2 . 3 . . 3 2 . Spaces Dug 31 | . . . . . . . . 7 . 24 . Terrain Destroyed 187 | . . . . . . . . 68 36 83 . Melee 7 | . . . . . . . . 7 . . . Projectile 3 | . . . . . . . . 3 . . . AOE 177 | . . . . . . . . 58 36 83 . Terrain Rammed . | . . . . . . . . . . . . Walls Destroyed . | . . . . . . . . . . . . Machines Disabled . | . . . . . . . . . . . . Actions | -11 -10 -10 -9 -9 -9 -8 -8 -7 -7 -7 -7 --------- Run | Yrd Mat Min Mat Min Exi Min Mat Fac Low Low Dat Total 8611 | 21 1000 540 1525 963 259 717 1331 1361 515 256 123 Wait 709 | . 55 12 94 271 . 7 131 131 8 . . Move 6776 | 17 783 487 1203 646 254 668 995 973 431 223 96 Hop . | . . . . . . . . . . . . Pick Up 107 | . 20 4 28 3 . 1 17 23 9 2 . Fast Attach 59 | 1 6 . 13 3 . . 13 11 8 4 . Attach 57 | . 3 4 9 2 . . 13 19 3 3 1 Detach 27 | . 3 . 5 1 . . 6 3 5 4 . Swap 106 | . 7 5 24 . 1 1 18 38 10 . 2 Drop 114 | . 10 2 37 6 . 1 22 15 14 5 2 Fire 551 | 3 88 26 105 31 . 37 111 119 20 11 . Melee 67 | . . . . . 4 2 3 25 7 4 22 Ram . | . . . . . . . . . . . . Kick . | . . . . . . . . . . . . Crush . | . . . . . . . . . . . . Escape Stasis . | . . . . . . . . . . . . Rewire . | . . . . . . . . . . . . Trap 38 | . 25 . 7 . . . 2 4 . . . Miscellaneous . | . . . . . . . . . . . . Route ------- -11/Scrapyard -10/Materials (discovered 6 exits: *Mat x3 / *Min x2 / [Sub]) -10/Mines (discovered 2 exits: *Mat x2) -9/Materials (discovered 6 exits: *Mat x3 / *Min x2 / [*Sto]) -9/Mines (discovered 3 exits: *Mat x2 / *Exi) -9/Exiles -8/Mines (discovered 2 exits: *Mat x2) -8/Materials -7/Factory (discovered 3 exits: [*Fac] / *Low x2) -7/Lower Caves -7/Lower Caves -7/Data Miner (discovered 1 exit: [*Pro]) History --------- Turn | Location | Event 11 | -11/Scrapyard | Discovered new exit (range 3) 32 | -11/Scrapyard | Entered Materials 311 | -10/Materials | Build established: Mutant 328 | -10/Materials | Discovered new exit (range 16) 643 | -10/Materials | Discovered new exit (range 16) 884 | -10/Materials | Discovered new exit (range 16) 1251 | -10/Materials | Repaired Med. Laser 1278 | -10/Materials | Repaired Assault Rifle 1296 | -10/Materials | Discovered new exit (range 6) 1335 | -10/Materials | Discovered new exit (range 5) 1508 | -10/Materials | Central database locked down 1540 | -10/Materials | Discovered new exit (range 10) 1629 | -10/Materials | Entered Mines 1696 | -10/Mines | Discovered new exit (range 8) 1850 | -10/Mines | Learned Materials terminal intel 1959 | -10/Mines | Discovered new exit (range 10) 1984 | -10/Mines | Received a Rocket Launcher from a helpful Derelict 2326 | -10/Mines | Assisted by bots powering up and referring to "LRC-V3" 2443 | -10/Mines | Entered Materials 2443 | -9/Materials | Accompanied by 3 allies 2443 | -9/Materials | Evolved 2 slots: Utility x1, Weapon x1 2444 | -9/Materials | Identified exit to Mines 2445 | -9/Materials | Loaded intel: 12 terminal locations 2743 | -9/Materials | Destroyed 7 combat bots 3089 | -9/Materials | Discovered new exit (range 5) 3246 | -9/Materials | Build established: Scavenger-Gunner 3554 | -9/Materials | Repaired Imp. Heat Sink 3670 | -9/Materials | Discovered new exit (range 6) 3853 | -9/Materials | Build established: Scavenger-Skirmisher 4535 | -9/Materials | Discovered new exit (range 13) 4630 | -9/Materials | Build established: Skirmisher 5252 | -9/Materials | Discovered new exit (range 5) 5309 | -9/Materials | Entered Mines 5317 | -9/Mines | Escorted by a lone wolf Derelict 5337 | -9/Mines | Learned location of Storage (-9) 5355 | -9/Mines | Learned Materials garrison access intel 5420 | -9/Mines | Found a damaged Exp. Sensor Array with a note attached 5434 | -9/Mines | Found Prototype Device 5473 | -9/Mines | Discovered new exit (range 11) 5665 | -9/Mines | Met a Derelict shopkeep closing up shop 5779 | -9/Mines | Learned Materials emergency access door positions 5932 | -9/Mines | Discovered new exit (range 10) 5993 | -9/Mines | Excavation squad dispatched 5993 | -9/Mines | A large section of the Mines collapsed 6243 | -9/Mines | Excavation squad dispatched 6320 | -9/Mines | Core integrity fell below 50% 6753 | -9/Mines | Build established: Tank 7042 | -9/Mines | Deemed a non-threat by the Exiles lab entrance 7042 | -9/Mines | Discovered new exit (range 5) 7051 | -9/Mines | Entered Exiles 7105 | -9/Exiles | Met 8R-AWN 7143 | -9/Exiles | Met EX-HEX 7207 | -9/Exiles | Met EX-BIN 7270 | -9/Exiles | Met EX-DEC 7326 | -9/Exiles | Learned location of Zion (-6) 7368 | -9/Exiles | Build established: Mutant 7563 | -9/Exiles | Discovered new exit (range 14) 7592 | -9/Exiles | Entered Mines 7631 | -8/Mines | Discovered new exit (range 9) 7778 | -8/Mines | Destroyed 8 combat bots 7927 | -8/Mines | Build established: Tank 8204 | -8/Mines | Discovered new exit (range 13) 9128 | -8/Mines | Entered Materials 9128 | -8/Materials | Evolved 2 slots: Utility x2 9130 | -8/Materials | Loaded intel: 1 garrison access location 9271 | -8/Materials | Identified Exp. Sensor Array 9782 | -8/Materials | Lost 3 parts (1u2w) 10088 | -8/Materials | Repaired Imp. Assault Rifle 10493 | -8/Materials | Build established: Scavenger-Tank 10696 | -8/Materials | Discovered new exit (range 8) 11653 | -8/Materials | Entered Factory 11653 | -7/Factory | Evolved 2 slots: Utility x2 12201 | -7/Factory | Identified exit to Lower Caves 12448 | -7/Factory | Repaired Imp. Assault Rifle 12475 | -7/Factory | Repaired Com. Wheel 12749 | -7/Factory | Garrison activated, responded to threat 12997 | -7/Factory | Garrison activated, responded to threat 13262 | -7/Factory | Build established: Hacker-Tank 13392 | -7/Factory | Garrison activated, responded to threat 13501 | -7/Factory | Lost 10 parts (1p3n2u4w) 13673 | -7/Factory | Core integrity fell below 50% 13706 | -7/Factory | Lost 4 parts (1n2u1w) 13970 | -7/Factory | Build established: Hacker-Mutant 14158 | -7/Factory | Discovered new exit (range 16) 14467 | -7/Factory | Entered Lower Caves 14646 | -7/Lower Caves | Learned location of 1 exit from Factory 14697 | -7/Lower Caves | Encountered a Warlord checkpoint 14741 | -7/Lower Caves | Found Imp. Powered Armor 15134 | -7/Lower Caves | Build established: Scavenger-Tank 15157 | -7/Lower Caves | Core integrity fell below 20% 15458 | -7/Lower Caves | Build established: Scavenger-Mutant 15470 | -7/Lower Caves | Discovered new exit (range 8) 15491 | -7/Lower Caves | Entered another Lower Caves area 15630 | -7/Lower Caves | Discovered new exit (range 10) 15815 | -7/Lower Caves | Destroyed 7 combat bots 16023 | -7/Lower Caves | Entered Data Miner 16023 | -7/Data Miner | Discovered new exit (range 6) 16063 | -7/Data Miner | Build established: Mutant 16076 | -7/Data Miner | Met Data Miner 16121 | -7/Data Miner | Learned location of Section 7 (-3) 16121 | -7/Data Miner | Acquired the access code to Warlord's prototype stash 16165 | -7/Data Miner | Received God Mode back door access code from Data Miner 16209 | -7/Data Miner | Interfaced with the Data Conduit 16328 | -7/Data Miner | Destroyed by Enhanced Grunt with Neutron Cannon Last Messages --------------- opportunity, hack it and enter \\NAAN to gain control via the back door I've installed. Now off with you. 16197_ System corrupted: Energy discharge (-116). 16206_ Sneak attack on Data Miner. 16206_ Data Miner disappears through a trap door. 16209_ Interfacing with system... Downloaded 134 analysis records. Downloaded 732 prototype IDs. Downloaded central machine database. Downloaded 23 destinations. Downloaded encryption format records. Connection remotely terminated. 16212_ System corrupted: Substantial component data lost. 16228_ System corrupted: Component data lost. 16285_ System corrupted: Matter fused (-9). 16301_ System corrupted: Component data lost. 16323_ Neutrino Core destroyed. 16323_ Imp. Medium Armor Plating destroyed. 16326_ Hacking Suite destroyed. Map ----- +----------------------------------------------------+ | | | | | | | | | | | | | | | | | | | | | | | | | | | | | | | | | | | ?????????????????????????????????????????? | | ?????????????????????????????????????????? | | ?????????????????????????????????????????? | | ?????????????????????????????????????????? | | ?????????????????????????????????????####? | | ????#################??????????????### #? | | ???##" "g """"""######????????##[] #? | | ??##" """" "" """"""""########## < ##? | | ??#" """""""" @ g ## | | ??# """"" g | | ??#" """ " | | ??# """ | | ??#" " """ | | ??# """ "" """"""""""""""""## | | ??#" " """" """"###############? | | ??##" """"" """""###??????????????? | | ???##"""""""" "#####????????????????? | | ????########"## "#????????????????????? | | ???????????#"### "#????????????????????? | | ???????????#"##; "#????????????????????? | | ???????????#"?# g "#????????????????????? | | ?????????????## "#????????????????????? | | ?????????????# "#????????????????????? | | ?????????????### "#????????????????????? | | ???????????????# "##???????????????????? | | ??????????????## ""#???????????????????? | | ?????????????## ""#???????????????????? | | ??????????##"#"X ""#???????????????????? | | ??????????""""" "####????????????????? | | ??????????""""" X"""""????????????????? | | ??????????##"#"X "##"#????????????????? | | ???????????#"## X""""#????????????????? | | ??????????????## "##"#????????????????? | +----------------------------------------------------+ Best States ------------- Heat Dissipation 61 Energy Generation 19 Energy Capacity 315 Matter Stores 300 Matter Capacity 300 Sight Range 16 Robot Scan Range 15 Terrain Scan Density 10 Armor Coverage 750 Resistance: KI 30 Evasion (%) 55 Melee Accuracy 6 Recoil Reduction 2 Kinecelleration 30 Offensive Hacking 20 Defensive Hacking 10 Authchip Count 4 Trap Extractor Capacity 4 Item Schematics ----------------- Huge Storage Unit | -10/Materials | Hacked Trap Extractor | -9/Materials | Hacked Ion Engine | -9/Materials | Hacked Lgt. Armor Plating | -9/Materials | Scanalyzed Exp. Sensor Array | -8/Materials | Scanalyzed Powered Armor | -7/Factory | Hacked Combat Drone Bay | -7/Data Miner | Free Lgt. Regenerative Plating | -7/Data Miner | Free Biomechanical Wings | -7/Data Miner | Free Thermal Defense Suite | -7/Data Miner | Free Imp. Heavy Machine Gun | -7/Data Miner | Free Antigrav System | -7/Data Miner | Free Adv. Drone Bay | -7/Data Miner | Free Imp. Arc Projector | -7/Data Miner | Free Imp. Recalibrator | -7/Data Miner | Free Robot Schematics ------------------ M-13 Machinist | -10/Materials | Hacked A-15 Conveyor | -7/Data Miner | Free G-47 Trooper | -7/Data Miner | Free X-57 Shotgunner | -7/Data Miner | Free Y-54 Guardian | -7/Data Miner | Free R-10 Processor | -7/Data Miner | Free G-50 Soldier | -7/Data Miner | Free B-48 Gladiator | -7/Data Miner | Free Fabricated ------------ Nothing Alien Tech Used ----------------- None Achievements -------------- None Challenges ------------ None Game ------ Seed CouplerFusionStreamer Manual? 0 Play Time 02:06:16 Cumulative 332.1 hours Start 2024.05.25 @ 09:05:39 End 2024.05.25 @ 11:53:45 Sessions 1 Manual Loads 0 Difficulty Rogue Special Mode None Game No. 203 Rogue 59 Adventurer 144 Explorer 0 Win Type - Total 4 Types 2/0/1/1/0/0/0/0/0 Lore% 66 Gallery% 78 Achievement% 64 Wizard Run 0 Options --------- Layout 0 ASCII 0 Keyboard 0 Movement Mouse Keybinds 0 Fullscreen 2 Font 20/SmallcapsGlow Map View 66x50 Zoom Use 0% Tactical HUD 1 Map Filters NONE Filters NONE Steam X RUN: a1765dbb-33a7-4d5f-8bc5-a58847b2b160